bitfinex/quotes_SOLUSD_20230113
["timestamp","ask_amount","ask_price","bid_price","bid_amount"]
[1673639467897,40.0,16.966,16.941,64.28]
[1673639468213,71.06022,16.966,16.941,64.28]
[1673639468405,51.06022,16.966,16.941,64.28]
[1673639468612,108.5178,16.974,16.95,23.67]
[1673639468823,108.5178,16.974,16.951,20.0]
[1673639468824,20.0,16.973,16.951,20.0]
[1673639469050,108.5178,16.974,16.951,64.25]
[1673639470191,115.36802,16.974,16.951,64.25]
[1673639470399,6.85022,16.974,16.951,64.25]
[1673639470602,6.85022,16.974,16.96,23.67]
[1673639470823,117.0847,16.979,16.96,23.67]
[1673639471039,123.93492,16.979,16.961,44.22]
[1673639471556,332.2041128,16.979,16.961,44.22]
[1673639471770,20.0,16.978,16.959,44.23]
[1673639471983,6.85022,16.977,16.954,44.24]
[1673639472186,185.15022,16.977,16.955,20.0]
[1673639472622,185.15022,16.977,16.956,44.24]
[1673639472834,6.85022,16.977,16.956,44.24]
[1673639473253,6.85022,16.977,16.956,74.2091928]
[1673639473867,6.85022,16.977,16.956,44.24]
[1673639475228,6.85022,16.977,16.957,29.9691928]
[1673639475439,23.53,16.98,16.957,29.9691928]
[1673639475663,23.53,16.98,16.958,64.23]
[1673639475867,208.68022,16.98,16.958,64.23]
[1673639476200,30.38022,16.98,16.959,29.9691928]
[1673639476808,30.38022,16.98,16.96,20.0]
[1673639477148,6.85022,16.98,16.961,29.9691928]
[1673639477544,6.85022,16.98,16.962,44.22]
[1673639477984,6.85022,16.98,16.962,74.1891928]
[1673639478175,6.85022,16.98,16.962,29.9691928]
[1673639478386,6.85022,16.98,16.963,44.22]
[1673639480503,6.85022,16.98,16.962,29.9691928]
[1673639480711,6.85022,16.979,16.963,44.22]
[1673639481553,341.2593,16.983,16.963,44.22]
[1673639481755,20.0,16.982,16.964,29.9691928]
[1673639482382,20.0,16.982,16.965,44.21]
[1673639482925,20.0,16.982,16.966,20.0]
[1673639483236,20.0,16.984,16.966,29.9691928]
[1673639483459,20.0,16.984,16.967,44.21]
[1673639483679,20.0,16.984,16.966,29.9691928]
[1673639483862,20.0,16.984,16.968,29.9691928]
[1673639484598,44.15,16.989,16.97,23.69]
[1673639485025,221.8,16.99,16.971,44.2]
[1673639485241,6.85022,16.989,16.971,44.2]
[1673639485649,6.85022,16.989,16.971,74.1691928]
[1673639485881,6.85022,16.989,16.971,29.9691928]
[1673639486069,6.85022,16.989,16.971,74.1691928]
[1673639486279,6.85022,16.989,16.971,44.2]
[1673639486484,26.85022,16.989,16.965,29.9691928]
[1673639487020,222.45,16.988,16.962,44.22]
[1673639487228,178.3,16.986,16.961,44.22]
[1673639487438,178.3,16.984,16.961,44.22]
[1673639487647,178.3,16.982,16.96,23.48]
[1673639487855,26.85022,16.981,16.961,44.22]
[1673639488067,6.85022,16.98,16.961,44.22]
[1673639488393,6.85022,16.98,16.96,23.48]
[1673639489228,6.85022,16.98,16.961,74.1891928]
[1673639489440,6.85022,16.98,16.962,20.0]
[1673639489664,6.85022,16.98,16.962,49.9691928]
[1673639489860,6.85022,16.98,16.963,74.1891928]
[1673639490501,20.0,16.981,16.964,29.9691928]
[1673639490710,116.0976,16.986,16.965,20.0]
[1673639490935,137.93,16.99,16.97,23.47]
[1673639490936,23.5,16.99,16.97,23.47]
[1673639491129,6.85022,16.989,16.97,23.47]
[1673639491343,6.85022,16.989,16.971,74.1691928]
[1673639491652,6.85022,16.989,16.972,29.9691928]
[1673639491846,178.3,16.991,16.972,29.9691928]
[1673639492055,178.3,16.991,16.971,44.2]
[1673639493129,118.29,16.99,16.971,44.2]
[1673639493445,20.0,16.988,16.964,44.22]
[1673639493631,178.3,16.986,16.96,23.62]
[1673639493841,23.69,16.98,16.96,23.62]
[1673639494491,20.0,16.978,16.955,29.9691928]
[1673639494681,205.15022,16.978,16.956,44.24]
[1673639494893,17.0,16.977,16.956,44.24]
[1673639495230,205.15022,16.976,16.954,29.9691928]
[1673639495444,178.3,16.974,16.954,29.9691928]
[1673639495638,20.0,16.973,16.954,29.9691928]
[1673639495966,198.3,16.973,16.954,29.9691928]
[1673639496157,242.49,16.973,16.954,29.9691928]
[1673639496375,198.3,16.973,16.954,29.9691928]
[1673639497116,44.2,16.972,16.954,29.9691928]
[1673639497335,198.3,16.971,16.95,118.13]
[1673639497521,198.3,16.971,16.952,29.9691928]
[1673639497733,44.2,16.97,16.952,29.9691928]
[1673639498153,20.0,16.971,16.952,29.9691928]
[1673639498513,20.0,16.971,16.954,20.0]
[1673639498697,20.0,16.974,16.954,20.0]
[1673639498894,20.0,16.975,16.956,20.0]
[1673639499220,20.0,16.975,16.957,29.9691928]
[1673639499432,20.0,16.975,16.957,59.9383856]
[1673639499616,20.0,16.975,16.952,44.25]
[1673639499830,178.3,16.973,16.952,44.25]
[1673639500041,178.3,16.973,16.951,44.25]
[1673639500267,178.3,16.973,16.953,20.0]
[1673639500268,20.0,16.972,16.953,20.0]
[1673639500481,20.0,16.972,16.952,29.9691928]
[1673639500680,20.0,16.972,16.954,29.9691928]
[1673639500896,20.0,16.973,16.954,29.9691928]
[1673639501108,222.48,16.976,16.954,29.9691928]
[1673639501109,20.0,16.975,16.954,29.9691928]
[1673639501323,20.0,16.975,16.955,20.0]
[1673639501735,20.0,16.975,16.956,29.9691928]
[1673639502380,20.0,16.975,16.957,20.0]
[1673639502571,20.0,16.975,16.956,29.9691928]
[1673639502787,20.0,16.975,16.957,29.9691928]
[1673639504889,20.0,16.975,16.953,44.24]
[1673639505095,195.3,16.974,16.952,74.2191928]
[1673639505294,20.0,16.973,16.952,29.9691928]
[1673639506998,20.0,16.972,16.952,29.9691928]
[1673639507405,178.3,16.971,16.952,29.9691928]
[1673639507733,20.0,16.97,16.952,29.9691928]
[1673639508680,195.3,16.969,16.95,23.48]
[1673639509112,6.85022,16.968,16.946,44.26]
[1673639509304,6.85022,16.968,16.94,138.35]
[1673639509305,17.0,16.967,16.947,20.0]
[1673639509624,17.0,16.967,16.945,44.27]
[1673639509625,178.3,16.966,16.944,74.2391928]
[1673639509818,178.3,16.964,16.946,74.2291928]
[1673639510022,37.0,16.965,16.946,74.2291928]
[1673639510023,20.0,16.963,16.946,29.9691928]
[1673639510237,20.0,16.965,16.947,29.9691928]
[1673639510462,44.21,16.967,16.95,23.69]
[1673639510658,108.588,16.971,16.95,23.69]
[1673639510867,20.0,16.97,16.951,74.2191928]
[1673639511300,198.3,16.97,16.951,74.2191928]
[1673639511508,178.3,16.97,16.952,29.9691928]
[1673639512229,178.3,16.97,16.951,44.25]
[1673639512230,178.3,16.968,16.951,44.25]
[1673639512453,178.3,16.968,16.95,23.69]
[1673639512993,20.0,16.967,16.95,23.69]
[1673639513928,20.0,16.967,16.945,44.27]
[1673639514122,178.3,16.965,16.941,44.28]
[1673639514341,178.3,16.963,16.941,44.28]
[1673639514552,6.85022,16.962,16.941,29.9691928]
[1673639514780,20.0,16.961,16.941,29.9691928]
[1673639514967,185.15022,16.96,16.941,29.9691928]
[1673639515294,26.85022,16.959,16.94,23.62]
[1673639515513,26.85022,16.959,16.941,29.9691928]
[1673639515514,178.3,16.958,16.941,29.9691928]
[1673639516547,26.85022,16.959,16.942,20.0]
[1673639516750,20.0,16.959,16.942,20.0]
[1673639516974,20.0,16.96,16.943,29.9691928]
[1673639517182,20.0,16.961,16.943,74.2391928]
[1673639517399,20.0,16.961,16.943,44.27]
[1673639517594,20.0,16.965,16.943,74.2391928]
[1673639517807,20.0,16.965,16.944,20.0]
[1673639518227,20.0,16.965,16.945,29.9691928]
[1673639518875,61.22,16.964,16.945,29.9691928]
[1673639519085,198.3,16.963,16.945,29.9691928]
[1673639519690,44.22,16.962,16.945,29.9691928]
[1673639520035,20.0,16.961,16.941,20.0]
[1673639520533,20.0,16.962,16.942,29.9691928]
[1673639520966,20.0,16.962,16.943,20.0]
[1673639521282,26.85022,16.962,16.944,29.9691928]
[1673639521501,17.0,16.961,16.944,29.9691928]
[1673639521715,20.0,16.96,16.944,29.9691928]
[1673639522336,20.0,16.961,16.944,29.9691928]
[1673639523806,64.22,16.961,16.944,29.9691928]
[1673639524227,20.0,16.961,16.944,29.9691928]
[1673639524551,23.52,16.96,16.941,44.28]
[1673639524762,23.52,16.96,16.941,29.9691928]
[1673639524763,178.3,16.958,16.941,29.9691928]
[1673639524972,185.15022,16.958,16.94,23.68]
[1673639525182,185.15022,16.958,16.936,44.29]
[1673639525495,178.3,16.956,16.937,20.0]
[1673639526646,178.3,16.956,16.935,20.0]
[1673639527384,178.3,16.956,16.934,44.29]
[1673639527597,26.85022,16.955,16.933,29.9691928]
[1673639528127,178.3,16.954,16.933,29.9691928]
[1673639528330,20.0,16.953,16.933,29.9691928]
[1673639528541,64.24,16.953,16.933,29.9691928]
[1673639528753,44.24,16.953,16.933,29.9691928]
[1673639528965,44.24,16.953,16.934,20.0]
[1673639529487,6.85022,16.955,16.935,29.9691928]
[1673639529488,44.24,16.954,16.935,29.9691928]
[1673639529678,6.85022,16.955,16.935,29.9691928]
[1673639530101,6.85022,16.955,16.936,20.0]
[1673639530310,44.24,16.956,16.936,20.0]
[1673639530540,44.24,16.956,16.937,29.9691928]
[1673639530752,119.906,16.959,16.939,20.0]
[1673639530963,119.906,16.959,16.94,17.0]
[1673639531174,119.906,16.959,16.938,64.28]
[1673639531371,119.906,16.959,16.938,94.2491928]
[1673639531583,119.906,16.959,16.939,20.0]
[1673639531903,6.85022,16.958,16.938,20.0]
[1673639532311,51.08022,16.958,16.937,20.0]
[1673639532523,51.08022,16.958,16.937,40.0]
[1673639532746,6.85022,16.958,16.938,20.0]
[1673639532961,164.136,16.959,16.941,20.0]
[1673639533152,119.906,16.959,16.941,20.0]
[1673639533362,119.906,16.959,16.941,49.9691928]
[1673639533590,119.906,16.959,16.942,29.9691928]
[1673639533803,119.906,16.959,16.943,17.0]
[1673639535481,119.906,16.959,16.941,20.0]
[1673639536829,119.906,16.959,16.94,43.47]
[1673639537147,222.52,16.962,16.942,29.9691928]
[1673639537148,44.22,16.962,16.942,29.9691928]
[1673639537358,44.22,16.962,16.95,23.69]
[1673639537586,145.7823928,16.969,16.95,23.69]
[1673639537786,152.6326128,16.969,16.95,23.69]
[1673639538000,198.3,16.968,16.95,23.69]
[1673639538310,242.51,16.968,16.95,23.69]
[1673639538519,242.51,16.968,16.951,17.0]
[1673639539051,222.51,16.968,16.951,17.0]
[1673639539265,122.66342,16.969,16.951,17.0]
[1673639539450,300.96342,16.969,16.951,17.0]
[1673639539664,345.16342,16.969,16.951,17.0]
[1673639540516,345.16342,16.969,16.95,23.69]
[1673639540831,20.0,16.966,16.945,44.27]
[1673639541044,20.0,16.966,16.946,20.0]
[1673639541256,44.21,16.965,16.946,20.0]
[1673639541681,44.21,16.965,16.944,64.27]
[1673639541875,44.21,16.966,16.945,17.0]
[1673639542087,44.21,16.966,16.946,20.0]
[1673639542733,44.21,16.967,16.95,23.69]
[1673639542947,189.9823928,16.969,16.95,23.69]
[1673639543582,160.0132,16.969,16.95,23.69]
[1673639543800,160.0132,16.969,16.951,17.0]
[1673639544318,20.0,16.968,16.951,17.0]
[1673639544723,44.21,16.967,16.951,17.0]
[1673639545264,44.21,16.968,16.951,17.0]
[1673639545476,20.0,16.967,16.951,17.0]
[1673639546106,44.21,16.968,16.951,17.0]
[1673639546838,44.2,16.972,16.951,17.0]
[1673639547157,20.0,16.971,16.95,118.59]
[1673639547686,64.2,16.97,16.95,23.62]
[1673639547894,20.0,16.969,16.95,23.62]
[1673639548523,20.0,16.969,16.951,17.0]
[1673639548723,20.0,16.97,16.951,17.0]
[1673639548935,44.2,16.97,16.951,17.0]
[1673639549256,20.0,16.969,16.951,17.0]
[1673639549447,44.2,16.971,16.951,17.0]
[1673639549448,44.2,16.971,16.96,23.67]
[1673639549661,94.76,16.99,16.96,23.67]
[1673639549662,44.19,16.973,16.96,23.67]
[1673639549878,160.9971,16.979,16.96,23.67]
[1673639550086,116.8171,16.979,16.96,23.67]
[1673639550501,44.18,16.978,16.96,23.67]
[1673639550720,116.8171,16.979,16.961,17.0]
[1673639550928,123.66732,16.979,16.961,17.0]
[1673639551162,178.3,16.978,16.961,17.0]
[1673639551361,167.84732,16.979,16.961,17.0]
[1673639552204,123.66732,16.979,16.961,17.0]
[1673639552712,116.8171,16.979,16.962,20.0]
[1673639552927,44.17,16.982,16.962,20.0]
[1673639553250,20.0,16.981,16.962,20.0]
[1673639553872,113.0823,16.988,16.963,44.22]
[1673639553873,44.16,16.987,16.963,44.22]
[1673639554093,44.16,16.987,16.97,23.67]
[1673639554486,44.16,16.987,16.971,17.0]
[1673639555571,113.0823,16.988,16.971,17.0]
[1673639555767,20.0,16.987,16.971,17.0]
[1673639556096,64.16,16.987,16.971,17.0]
[1673639556806,44.16,16.987,16.971,17.0]
[1673639557566,44.16,16.987,16.97,23.67]
[1673639557776,23.85022,16.986,16.97,23.67]
[1673639557974,6.85022,16.986,16.97,23.67]
[1673639558175,44.16,16.985,16.97,23.67]
[1673639559372,20.0,16.984,16.96,118.44]
[1673639559672,26.85022,16.983,16.96,118.44]
[1673639559889,20.0,16.982,16.96,118.44]
[1673639560288,44.17,16.981,16.96,118.44]
[1673639560496,20.0,16.98,16.96,118.44]
[1673639561136,20.0,16.981,16.961,20.0]
[1673639561558,20.0,16.981,16.96,118.44]
[1673639561758,20.0,16.981,16.96,23.68]
[1673639561759,37.0,16.98,16.96,23.68]
[1673639561968,26.85022,16.979,16.96,23.68]
[1673639562200,6.85022,16.978,16.96,23.68]
[1673639562412,51.03022,16.978,16.96,23.68]
[1673639564403,20.0,16.977,16.96,23.68]
[1673639564724,6.85022,16.978,16.96,23.68]
[1673639565143,44.18,16.977,16.96,23.68]
[1673639565344,51.03022,16.978,16.96,23.68]
[1673639567026,51.03022,16.978,16.96,118.44]
[1673639567249,44.18,16.978,16.96,118.55]
[1673639567441,20.0,16.979,16.961,64.22]
[1673639567653,20.0,16.98,16.961,64.22]
[1673639567865,20.0,16.981,16.961,64.22]
[1673639568071,20.0,16.982,16.961,64.22]
[1673639569979,40.0,16.982,16.961,44.22]
[1673639570292,44.17,16.981,16.96,298.55]
[1673639570499,20.0,16.98,16.96,203.68]
[1673639571027,20.0,16.98,16.961,20.0]
[1673639571428,20.0,16.981,16.961,20.0]
[1673639572186,20.0,16.981,16.96,203.68]
[1673639572395,17.0,16.98,16.96,203.68]
[1673639572601,26.85022,16.979,16.96,203.68]
[1673639573235,44.18,16.978,16.96,203.68]
[1673639573551,51.03022,16.978,16.96,203.68]
[1673639573867,229.33022,16.978,16.96,203.68]
[1673639574077,185.15022,16.978,16.96,203.68]
[1673639575550,20.0,16.977,16.96,203.68]
[1673639576179,17.0,16.976,16.96,180.0]
[1673639576393,6.85022,16.975,16.96,180.0]
[1673639577016,20.0,16.974,16.96,180.0]
[1673639577232,17.0,16.973,16.96,180.0]
[1673639577462,26.85022,16.972,16.96,180.0]
[1673639577655,20.0,16.971,16.96,180.0]
[1673639577853,20.0,16.97,16.96,180.0]
[1673639578173,20.0,16.975,16.96,180.0]
[1673639578174,152.76526627,16.98,16.96,180.0]
[1673639578386,121.95112519,17.004,16.96,180.0]
[1673639578387,45.4620506,16.976,16.971,110.87665154]
[1673639578602,291.6908,16.999,16.971,503.17665154]
[1673639578912,291.6908,16.999,16.98,23.69]
[1673639579323,291.6908,16.999,16.98,141.03601196]
[1673639579532,113.3908,16.999,16.981,64.17]
[1673639579748,113.3908,16.999,16.981,20.0]
[1673639579963,113.3908,16.999,16.982,117.34601196]
[1673639580590,113.3908,16.999,16.981,44.17]
[1673639581544,113.3908,16.999,16.982,87.84893014]
[1673639581755,178.3,16.998,16.982,87.84893014]
[1673639581968,113.3908,16.999,16.983,17.0]
[1673639582693,44.12,17.002,16.983,149.01893014]
[1673639582912,136.4421,17.01,16.99,23.69]
[1673639582913,118.6736,17.007,16.99,23.69]
[1673639583329,118.6736,17.007,16.991,61.15]
[1673639584385,118.6736,17.007,16.992,20.0]
[1673639584591,118.6736,17.007,16.992,44.14]
[1673639584804,118.6736,17.007,16.992,131.98893014]
[1673639585018,118.6736,17.007,16.99,118.4]
[1673639585019,118.6736,17.007,16.991,44.15]
[1673639585422,118.6736,17.007,16.992,17.0]
[1673639586268,118.6736,17.007,16.991,20.0]
[1673639586479,118.6736,17.007,16.991,64.15]
[1673639587022,118.6736,17.007,16.991,70.92301]
[1673639587546,118.6736,17.007,16.993,20.0]
[1673639588072,118.6736,17.007,16.995,20.0]
[1673639588284,29.9691928,17.014,17.0,23.69]
[1673639588595,118.8564,17.017,17.0,23.69]
[1673639589219,118.8564,17.017,16.996,64.13]
[1673639589220,148.8255928,17.017,16.996,64.13]
[1673639589433,20.0,17.016,16.996,26.77102]
[1673639589645,20.0,17.016,16.996,114.61995014]
[1673639589978,118.8564,17.017,17.0,118.25]
[1673639590289,118.8564,17.017,17.001,6.76903]
[1673639590468,44.06,17.025,17.002,20.0]
[1673639590678,20.0,17.026,17.003,43.76823]
[1673639591013,20.0,17.026,17.004,29.9691928]
[1673639591221,64.06,17.026,17.005,20.0]
[1673639591534,198.3,17.026,17.005,44.11]
[1673639591758,198.3,17.026,17.003,151.04190653]
[1673639591759,44.06,17.025,17.003,6.76823]
[1673639591942,17.0,17.024,17.0,23.48]
[1673639592163,46.9691928,17.024,17.0,23.48]
[1673639592498,20.0,17.022,17.0,23.48]
[1673639592796,20.0,17.021,17.0,118.24]
[1673639593009,20.0,17.02,17.0,118.24]
[1673639593209,20.0,17.019,17.0,118.24]
[1673639593958,20.0,17.02,17.001,26.76903]
[1673639594273,20.0,17.02,17.002,63.19337639]
[1673639594480,20.0,17.023,17.002,63.19337639]
[1673639594683,44.06,17.024,17.01,23.67]
[1673639595103,159.8512,17.027,17.01,23.67]
[1673639595320,20.0,17.026,17.01,23.67]
[1673639595528,20.0,17.026,17.011,17.0]
[1673639595841,115.8012,17.027,17.011,17.0]
[1673639597867,44.04,17.033,17.013,20.0]
[1673639598075,20.0,17.032,17.02,23.69]
[1673639598269,20.0,17.032,17.021,17.0]
[1673639598599,44.03,17.035,17.021,17.0]
[1673639598784,44.03,17.035,17.022,29.9691928]
[1673639598993,113.9572,17.039,17.022,29.9691928]
[1673639598994,157.9772,17.039,17.022,29.9691928]
[1673639599230,113.9572,17.039,17.022,29.9691928]
[1673639599443,113.9572,17.039,17.023,17.0]
[1673639599839,113.9572,17.039,17.023,46.9691928]
[1673639600053,113.9572,17.039,17.021,56.42474639]
[1673639600273,20.0,17.038,17.021,56.42474639]
[1673639600603,20.0,17.038,17.02,118.4]
[1673639602153,20.0,17.036,17.02,118.4]
[1673639602359,49.9691928,17.036,17.018,44.08]
[1673639602574,20.0,17.035,17.01,118.03]
[1673639602802,93.9991928,17.036,17.011,36.7342428]
[1673639602803,64.03,17.036,17.011,36.7342428]
[1673639602996,19.0,17.036,17.02,23.69]
[1673639603212,64.02,17.038,17.02,23.69]
[1673639603416,44.03,17.036,17.012,29.9691928]
[1673639603632,20.0,17.034,17.011,6.76505]
[1673639603837,20.0,17.033,17.011,6.76505]
[1673639604053,64.04,17.033,17.011,6.76505]
[1673639604478,178.3,17.032,17.011,6.76505]
[1673639604673,40.0,17.031,17.011,6.76505]
[1673639605012,20.0,17.031,17.011,6.76505]
[1673639605199,74.0091928,17.033,17.011,6.76505]
[1673639605200,44.04,17.033,17.02,118.23]
[1673639605410,44.04,17.031,17.021,17.0]
[1673639605618,20.0,17.035,17.02,23.68]
[1673639605943,20.0,17.035,17.021,17.0]
[1673639606158,20.0,17.033,17.021,17.0]
[1673639606363,20.0,17.033,17.011,6.76505]
[1673639606791,44.03,17.034,17.012,46.9691928]
[1673639607106,44.03,17.034,17.014,20.0]
[1673639607306,44.03,17.034,17.015,6.76346]
[1673639607536,44.03,17.034,17.015,53.7326528]
[1673639607728,44.03,17.034,17.016,29.9691928]
[1673639607927,44.03,17.034,17.02,23.67]
[1673639608347,44.03,17.034,17.021,17.0]
[1673639608786,44.03,17.034,17.02,23.67]
[1673639609618,20.0,17.033,17.02,23.67]
[1673639610353,44.03,17.034,17.02,23.67]
[1673639610560,44.03,17.034,17.014,29.9691928]
[1673639610776,44.03,17.034,17.02,21.75]
[1673639611188,44.03,17.034,17.021,17.0]
[1673639612791,44.03,17.034,17.021,46.9691928]
[1673639613007,44.03,17.034,17.022,6.76067]
[1673639613842,44.03,17.034,17.023,29.9691928]
[1673639614685,44.03,17.034,17.024,20.0]
[1673639614886,44.03,17.034,17.025,23.75948]
[1673639615101,44.03,17.034,17.026,6.75909]
[1673639615300,44.03,17.034,17.026,36.7282828]
[1673639615523,44.03,17.034,17.027,17.0]
[1673639615842,44.03,17.034,17.027,46.9691928]
[1673639616038,44.03,17.034,17.028,36.7274828]
[1673639616250,44.03,17.034,17.029,17.0]
[1673639616457,44.03,17.034,17.029,46.9691928]
[1673639617941,44.03,17.034,17.028,6.75829]
[1673639618151,44.03,17.034,17.006,20.0]
[1673639618152,44.03,17.034,17.022,29.9691928]
[1673639618369,44.03,17.034,17.023,6.76028]
[1673639618772,44.03,17.034,17.024,75.21877766]
[1673639618979,44.03,17.034,17.025,6.75948]
[1673639619190,44.03,17.034,17.025,36.7286728]
[1673639619520,44.03,17.034,17.026,29.9691928]
[1673639619838,44.03,17.034,17.027,6.75869]
[1673639620363,44.03,17.034,17.028,29.9691928]
[1673639620885,44.03,17.034,17.021,29.9691928]
[1673639621097,44.03,17.034,17.007,44.1]
[1673639621098,20.0,17.033,17.022,6.76067]
[1673639621305,20.0,17.033,17.02,21.79]
[1673639621720,44.03,17.034,17.02,21.79]
[1673639621930,44.03,17.034,17.02,51.7591928]
[1673639622137,44.03,17.034,17.02,58.5206628]
[1673639623074,44.03,17.034,17.021,6.76107]
[1673639623526,44.03,17.034,17.02,21.79]
[1673639623828,20.0,17.033,17.02,21.79]
[1673639624455,44.03,17.034,17.02,51.7591928]
[1673639625512,44.03,17.034,17.021,17.0]
[1673639625920,44.03,17.034,17.022,29.9691928]
[1673639626339,44.03,17.034,17.023,17.0]
[1673639626766,44.03,17.034,17.024,29.9691928]
[1673639627487,44.03,17.034,17.025,17.0]
[1673639627710,44.03,17.034,17.026,26.75909]
[1673639627921,44.03,17.034,17.028,20.0]
[1673639628115,44.03,17.034,17.028,26.75829]
[1673639628331,44.03,17.034,17.029,29.9691928]
[1673639628546,20.0,17.045,17.029,29.9691928]
[1673639628762,224.7616,17.046,17.03,117.52]
[1673639628977,224.7616,17.046,17.031,17.0]
[1673639629598,403.0616,17.046,17.028,6.75829]
[1673639629812,178.3,17.044,17.02,163.31981387]
[1673639630024,178.3,17.042,17.02,117.65]
[1673639630347,20.0,17.041,17.02,147.6191928]
[1673639630559,20.0,17.04,17.02,147.6191928]
[1673639630955,198.3,17.04,17.02,147.6191928]
[1673639631385,178.3,17.04,17.02,147.6191928]
[1673639631619,40.0,17.041,17.023,29.9691928]
[1673639631795,20.0,17.041,17.023,29.9691928]
[1673639632228,44.02,17.04,17.023,29.9691928]
[1673639632452,44.02,17.04,17.024,44.06]
[1673639632648,44.02,17.041,17.024,44.06]
[1673639632975,44.02,17.039,17.024,74.0291928]
[1673639633161,44.02,17.039,17.024,29.9691928]
[1673639633373,44.02,17.04,17.025,17.0]
[1673639633582,44.02,17.038,17.025,17.0]
[1673639633835,44.02,17.039,17.025,17.0]
[1673639634025,44.03,17.037,17.025,17.0]
[1673639634241,44.02,17.038,17.025,17.0]
[1673639634442,222.32,17.038,17.02,117.65]
[1673639634639,20.0,17.037,17.02,23.58]
[1673639635180,20.0,17.035,17.013,392.3]
[1673639635390,178.3,17.033,17.014,64.09]
[1673639635592,20.0,17.032,17.014,64.09]
[1673639636218,222.34,17.031,17.014,64.09]
[1673639636856,44.04,17.031,17.015,20.0]
[1673639637167,44.04,17.031,17.016,20.0]
[1673639637493,44.04,17.033,17.016,94.0491928]
[1673639637715,20.0,17.032,17.016,20.0]
[1673639638141,44.04,17.031,17.015,20.0]
[1673639638874,44.04,17.031,17.016,44.08]
[1673639639087,44.04,17.032,17.016,44.08]
[1673639639272,44.04,17.032,17.015,20.0]
[1673639640346,44.04,17.032,17.016,17.0]
[1673639640744,44.04,17.032,17.017,29.9691928]
[1673639641164,135.8777,17.034,17.017,29.9691928]
[1673639641372,44.04,17.033,17.017,29.9691928]
[1673639641587,20.0,17.032,17.017,29.9691928]
[1673639642007,222.34,17.033,17.017,29.9691928]
[1673639642219,44.04,17.033,17.017,29.9691928]
[1673639642440,44.04,17.033,17.02,23.5]
[1673639642854,114.551,17.037,17.021,17.0]
[1673639643049,114.551,17.037,17.021,91.0391928]
[1673639643266,114.551,17.037,17.022,29.9691928]
[1673639643684,114.551,17.037,17.023,44.06]
[1673639644125,114.551,17.037,17.023,74.0291928]
[1673639644331,114.551,17.037,17.023,29.9691928]
[1673639644650,114.551,17.037,17.024,44.06]